[Event "DMP Ekstraliga 2020"]
[Site "Krakow"]
[Date "2020.03.27"]
[Round "2.8"]
[White "Dziuba, Marcin"]
[Black "Barski, Radoslaw"]
[Result "1-0"]
[ECO "D78"]
[WhiteElo "2590"]
[BlackElo "2444"]
[Annotator "RC"]
[PlyCount "67"]
[EventDate "2020.08.26"]
[EventType "team-tourn"]
[EventCountry "POL"]
[SourceTitle "playchess.com"]
[Source "ChessBase"]
[SourceQuality "1"]
[TimeControl "30/5400+30:1800+30"]

1. d4 {[%emt 0:00:00]} d5 {[%emt 0:00:00]} 2. c4 {[%emt 0:00:00]} c6 {[%emt 0:00:00]} 3. Nf3 {[%emt 0:00:18]} Nf6 {[%emt 0:00:04]} 4. g3 {[%emt 0:01:18]} g6 {[%emt 0:03:03]} 5. Bg2 {[%emt 0:00:45]} Bg7 {[%emt 0:00:07]} 6. O-O {[%emt 0:01:27]} O-O {[%emt 0:00:10]} 7. Qb3 {[%emt 0:01:11]} Qb6 {[%emt 0:00:37]} 8. Nc3 {[%emt 0:01:15]} Rd8 {[%emt 0:02:06]} 9. c5 {[%emt 0:11:17]} Qa6 {[%emt 0:23:07]} 10. Bf4 {[%emt 0:01:48]} Bf5 {[%emt 0:00:15]} 11. Rfc1 {[%emt 0:03:14]} b6 {[%emt 0:04:16]} 12. cxb6 {[%emt 0:03:34]} axb6 {[%emt 0:01:09]} 13. Ne5 {[%emt 0:17:16]} Be6 {[%emt 0:05:51]} 14. a4 {[%emt 0:09:33]} Rc8 {[%emt 0:10:03]} 15. Qa3 {[%emt 0:12:33]} c5 {[%emt 0:17:18]} 16. Nb5 {[%emt 0:09:17]} Nh5 {[%emt 0:03:45]} 17. Nd3 {[%emt 0:02:47]} c4 {[%emt 0:02:38]} 18. Nb4 {[%emt 0:02:09]} Qb7 {[%emt 0:03:12]} 19. b3 {[%emt 0:02:22]} Nxf4 {[%emt 0:06:59]} 20. gxf4 {[%emt 0:00:17]} c3 {[%emt 0:00:07]} 21. e3 {[%emt 0:10:41]} Nd7 {[%emt 0:05:17]} 22. Nxc3 {[%emt 0:01:10]} Nf6 {[%emt 0:00:16]} 23. Nd3 {[%emt 0:03:10]} Ne4 {[%emt 0:03:35]} 24. Nxe4 {[%emt 0:00:10]} dxe4 {[%emt 0:00:05]} 25. Ne5 {[%emt 0:02:15]} f6 {[%emt 0:02:09]} 26. Nc4 {[%emt 0:00:30]} b5 {[%emt 0:00:22]} 27. Qb4 {[%emt 0:00:24]} Rab8 {[%emt 0:01:27]} 28. Na5 {[%emt 0:00:17]} Qd5 {[%emt 0:00:21]} 29. Rxc8+ {[%emt 0:00:18]} Bxc8 {[%emt 0:00:52]} 30. Rc1 {[%emt 0:01:23]} Bf8 {[%emt 0:01:24]} 31. Nc6 {[%emt 0:30:58]} Rb7 {[%emt 0:30:35]} 32. axb5 {[%emt 0:00:56]} e6 {[%emt 0:01:50]} 33. Qc4 {[%emt 0:00:12]} Rxb5 {[%emt 0:01:45]} 34. Na7 1-0

[Event "DMP Ekstraliga 2020"]
[Site "Krakow"]
[Date "2020.03.27"]
[Round "2.16"]
[White "Kriebel, Tadeas"]
[Black "Miton, Kamil"]
[Result "1/2-1/2"]
[ECO "B35"]
[WhiteElo "2519"]
[BlackElo "2590"]
[Annotator "RC"]
[PlyCount "31"]
[EventDate "2020.08.26"]
[EventType "team-tourn"]
[EventCountry "POL"]
[SourceTitle "playchess.com"]
[Source "ChessBase"]
[SourceQuality "1"]
[TimeControl "30/5400+30:1800+30"]

1. e4 {[%emt 0:00:00]} c5 {[%emt 0:00:00]} 2. Nf3 {[%emt 0:00:00]} Nc6 {[%emt 0:00:11]} 3. Nc3 {[%emt 0:00:00]} g6 {[%emt 0:00:57]} 4. d4 {[%emt 0:00:12]} cxd4 {[%emt 0:00:08]} 5. Nxd4 {[%emt 0:00:04]} Bg7 {[%emt 0:00:06]} 6. Be3 {[%emt 0:00:09]} Nf6 {[%emt 0:00:23]} 7. Bc4 {[%emt 0:00:14]} Qa5 {[%emt 0:01:07]} 8. O-O {[%emt 0:00:36]} O-O {[%emt 0:00:27]} 9. Bb3 {[%emt 0:01:28]} d6 {[%emt 0:00:43]} 10. Nd5 {[%emt 0:00:07]} Re8 {[%emt 0:05:00]} 11. Nxf6+ {[%emt 0:02:00]} Bxf6 {[%emt 0:00:23]} 12. c3 {[%emt 0:00:05]} Bd7 {[%emt 0:04:36]} 13. f4 {[%emt 0:05:45]} Nxd4 {[%emt 0:04:05]} 14. Bxd4 {[%emt 0:02:53]} Bxd4+ {[%emt 0:02:16]} 15. Qxd4 {[%emt 0:00:08]} Qc5 {[%emt 0:26:05]} 16. Qxc5 {[%emt 0:01:50]} 1/2-1/2

[Event "DMP Ekstraliga 2020"]
[Site "Krakow"]
[Date "2020.03.27"]
[Round "2.19"]
[White "Antoniewski, Rafal"]
[Black "Matuszewski, Michal"]
[Result "1/2-1/2"]
[ECO "A10"]
[WhiteElo "2490"]
[BlackElo "2508"]
[Annotator "ChessBase"]
[PlyCount "27"]
[EventDate "2020.08.26"]
[EventType "team-tourn"]
[EventCountry "POL"]
[SourceTitle "playchess.com"]
[Source "ChessBase"]
[SourceQuality "1"]
[TimeControl "30/5400+30:1800+30"]

1. c4 {[%emt 0:00:00]} f5 {[%emt 0:00:00]} 2. Nf3 {[%emt 0:01:13]} Nf6 {[%emt 0:00:00]} 3. g3 {[%emt 0:00:48]} g6 {[%emt 0:00:00]} 4. Bg2 {[%emt 0:01:26]} Bg7 {[%emt 0:00:00]} 5. O-O {[%emt 0:00:06]} d6 {[%emt 0:00:03]} 6. d4 {[%emt 0:00:05]} O-O {[%emt 0:00:04]} 7. b3 {[%emt 0:00:04]} a5 {[%emt 0:01:11]} 8. Bb2 {[%emt 0:00:15]} c6 {[%emt 0:05:58]} 9. Nc3 {[%emt 0:02:00]} Na6 {[%emt 0:00:23]} 10. Qc2 {[%emt 0:06:23]} Rb8 {[%emt 0:05:50]} 11. Rfd1 {[%emt 0:15:22]} Bd7 {[%emt 0:16:52]} 12. e4 {[%emt 0:12:49]} f4 {[%emt 0:03:41]} 13. e5 {[%emt 0:07:19]} Nh5 {[%emt 0:15:25]} 14. Qe2 {[%emt 0:24:12]} 1/2-1/2

[Event "DMP Ekstraliga 2020"]
[Site "Krakow"]
[Date "2020.03.27"]
[Round "2.20"]
[White "Leniart, Arkadiusz"]
[Black "Cyborowski, Lukasz"]
[Result "0-1"]
[ECO "B36"]
[WhiteElo "2482"]
[BlackElo "2508"]
[Annotator "ChessBase"]
[PlyCount "46"]
[EventDate "2020.08.26"]
[EventType "team-tourn"]
[EventCountry "POL"]
[SourceTitle "playchess.com"]
[Source "ChessBase"]
[SourceQuality "1"]
[TimeControl "30/5400+30:1800+30"]

1. e4 {[%emt 0:00:00]} c5 {[%emt 0:00:00]} 2. Nf3 {[%emt 0:00:00]} Nc6 {[%emt 0:01:13]} 3. d4 {[%emt 0:00:00]} cxd4 {[%emt 0:00:06]} 4. Nxd4 {[%emt 0:00:00]} g6 {[%emt 0:01:19]} 5. c4 {[%emt 0:00:13]} Nf6 {[%emt 0:01:54]} 6. Nc3 {[%emt 0:00:40]} Nxd4 {[%emt 0:00:28]} 7. Qxd4 {[%emt 0:00:10]} d6 {[%emt 0:00:03]} 8. c5 {[%emt 0:16:45]} Bg7 {[%emt 0:02:03]} 9. Bb5+ {[%emt 0:07:30]} Bd7 {[%emt 0:01:03]} 10. Bxd7+ {[%emt 0:00:15]} Qxd7 {[%emt 0:00:08]} 11. cxd6 {[%emt 0:00:08]} O-O {[%emt 0:04:20]} 12. Qb4 {[%emt 0:03:42]} a5 {[%emt 0:27:30]} 13. Qb5 {[%emt 0:02:19]} exd6 {[%emt 0:04:37]} 14. Qd3 {[%emt 0:05:28]} b5 {[%emt 0:05:36]} 15. Bg5 {[%emt 0:27:18]} Qg4 {[%emt 0:32:02]} 16. Bxf6 {[%emt 0:05:45]} Qxg2 {[%emt 0:00:12]} 17. Bxg7 {[%emt 0:19:14]} Qxh1+ {[%emt 0:00:06]} 18. Ke2 {[%emt 0:00:02]} Qxa1 {[%emt 0:00:07]} 19. Bf6 {[%emt 0:00:04]} Rae8 {[%emt 0:02:03]} 20. Nd5 {[%emt 0:01:39]} Re6 {[%emt 0:02:25]} 21. Qe3 {[%emt 0:05:35]} Qh1 {[%emt 0:03:37]} 22. f3 {[%emt 0:01:47]} Qxh2+ {[%emt 0:00:20]} 23. Kd3 {[%emt 0:00:06]} Rc8 {[%emt 0:01:12]} 0-1

[Event "DMP Ekstraliga 2020"]
[Site "Krakow"]
[Date "2020.03.27"]
[Round "2.21"]
[White "Nurkiewicz, Maciej"]
[Black "Nguyen, Piotr"]
[Result "0-1"]
[ECO "A41"]
[WhiteElo "2326"]
[BlackElo "2422"]
[Annotator "ChessBase"]
[PlyCount "73"]
[EventDate "2020.08.26"]
[EventType "team-tourn"]
[EventCountry "POL"]
[SourceTitle "playchess.com"]
[Source "ChessBase"]
[SourceQuality "1"]
[TimeControl "30/5400+30:1800+30"]

1. d4 {[%emt 0:00:00]} d6 {[%emt 0:00:00]} 2. c4 {[%emt 0:00:00]} e5 {[%emt 0:00:00]} 3. Nc3 {[%emt 0:01:17]} exd4 {[%emt 0:00:06]} 4. Qxd4 {[%emt 0:00:08]} Nf6 {[%emt 0:00:07]} 5. b3 {[%emt 0:03:21]} Nc6 {[%emt 0:00:38]} 6. Qd2 {[%emt 0:01:08]} Be6 {[%emt 0:15:07]} 7. e4 {[%emt 0:01:27]} a5 {[%emt 0:00:39]} 8. Bb2 {[%emt 0:06:10]} a4 {[%emt 0:03:47]} 9. Rd1 {[%emt 0:00:17]} axb3 {[%emt 0:06:01]} 10. axb3 {[%emt 0:00:03]} Nd7 {[%emt 0:02:15]} 11. Nd5 {[%emt 0:25:17]} Nc5 {[%emt 0:05:51]} 12. Qe3 {[%emt 0:00:27]} Ra2 {[%emt 0:12:50]} 13. Rd2 {[%emt 0:00:16]} Ne5 {[%emt 0:05:53]} 14. f4 {[%emt 0:41:35]} Ng4 {[%emt 0:01:58]} 15. Qf3 {[%emt 0:01:11]} c6 {[%emt 0:10:29]} 16. f5 {[%emt 0:01:23]} Bxd5 {[%emt 0:05:45]} 17. exd5 {[%emt 0:06:13]} Ne5 {[%emt 0:05:06]} 18. Qe3 {[%emt 0:03:46]} Qh4+ {[%emt 0:02:15]} 19. g3 {[%emt 0:00:09]} Qe4 {[%emt 0:00:07]} 20. Qxe4 {[%emt 0:00:11]} Nxe4 {[%emt 0:00:05]} 21. Rc2 {[%emt 0:00:14]} Be7 {[%emt 0:02:54]} 22. Be2 {[%emt 0:02:08]} Bf6 {[%emt 0:03:05]} 23. Nh3 {[%emt 0:00:13]} Nd7 {[%emt 0:09:40]} 24. Bf3 {[%emt 0:00:53]} Ndc5 {[%emt 0:00:34]} 25. Bxe4 {[%emt 0:00:40]} Nxe4 {[%emt 0:00:04]} 26. Re2 {[%emt 0:00:05]} Rxb2 {[%emt 0:00:11]} 27. Rxe4+ {[%emt 0:00:14]} Kd7 {[%emt 0:00:03]} 28. dxc6+ {[%emt 0:01:16]} bxc6 {[%emt 0:00:04]} 29. O-O {[%emt 0:00:18]} Ra8 {[%emt 0:03:09]} 30. Nf2 {[%emt 0:00:44]} Raa2 {[%emt 0:00:22]} 31. Ng4 {[%emt 0:30:40]} Bd8 {[%emt 0:31:43]} 32. f6 {[%emt 0:03:29]} g6 {[%emt 0:00:49]} 33. c5 {[%emt 0:00:07]} Rg2+ {[%emt 0:01:24]} 34. Kh1 {[%emt 0:00:02]} h5 {[%emt 0:00:07]} 35. Rd1 {[%emt 0:01:26]} hxg4 {[%emt 0:01:16]} 36. Rxd6+ {[%emt 0:00:05]} Kc7 {[%emt 0:00:10]} 37. Re8 {[%emt 0:00:08]} 0-1

[Event "DMP Ekstraliga 2020"]
[Site "Krakow"]
[Date "2020.03.27"]
[Round "2.22"]
[White "Zwardon, Vojtech"]
[Black "Bartel, Michal"]
[Result "1-0"]
[ECO "A20"]
[WhiteElo "2481"]
[BlackElo "2274"]
[Annotator "ChessBase"]
[PlyCount "91"]
[EventDate "2020.08.26"]
[EventType "team-tourn"]
[EventCountry "POL"]
[SourceTitle "playchess.com"]
[Source "ChessBase"]
[SourceQuality "1"]
[TimeControl "30/5400+30:1800+30"]

1. c4 {[%emt 0:00:00]} e5 {[%emt 0:00:00]} 2. g3 {[%emt 0:00:00]} d6 {[%emt 0:00:00]} 3. Bg2 {[%emt 0:00:00]} f5 {[%emt 0:00:05]} 4. d4 {[%emt 0:00:00]} Be7 {[%emt 0:00:12]} 5. Nc3 {[%emt 0:00:16]} Nf6 {[%emt 0:01:45]} 6. e3 {[%emt 0:06:39]} c6 {[%emt 0:01:34]} 7. Nge2 {[%emt 0:00:13]} O-O {[%emt 0:01:30]} 8. b3 {[%emt 0:00:45]} Qe8 {[%emt 0:03:45]} 9. Ba3 {[%emt 0:01:17]} Nbd7 {[%emt 0:01:46]} 10. Qc2 {[%emt 0:00:58]} e4 {[%emt 0:18:10]} 11. h4 {[%emt 0:00:40]} Ng4 {[%emt 0:07:34]} 12. Nf4 {[%emt 0:01:36]} Ndf6 {[%emt 0:04:14]} 13. b4 {[%emt 0:03:24]} Bd7 {[%emt 0:01:53]} 14. Qb3 {[%emt 0:00:17]} Qf7 {[%emt 0:06:06]} 15. b5 {[%emt 0:02:16]} a6 {[%emt 0:05:19]} 16. bxc6 {[%emt 0:00:16]} bxc6 {[%emt 0:00:10]} 17. Rb1 {[%emt 0:00:05]} c5 {[%emt 0:13:46]} 18. Ncd5 {[%emt 0:05:18]} Nxd5 {[%emt 0:01:33]} 19. Nxd5 {[%emt 0:00:20]} Be6 {[%emt 0:03:59]} 20. Nxe7+ {[%emt 0:00:33]} Qxe7 {[%emt 0:00:09]} 21. d5 {[%emt 0:00:12]} Bc8 {[%emt 0:01:12]} 22. Bb2 {[%emt 0:04:20]} a5 {[%emt 0:00:55]} 23. O-O {[%emt 0:02:08]} a4 {[%emt 0:01:13]} 24. Qc2 {[%emt 0:00:19]} g5 {[%emt 0:04:09]} 25. hxg5 {[%emt 0:08:30]} Qxg5 {[%emt 0:00:02]} 26. Bh3 {[%emt 0:00:30]} Nh6 {[%emt 0:01:27]} 27. Qc3 {[%emt 0:00:55]} Nf7 {[%emt 0:00:57]} 28. Qf6 {[%emt 0:00:28]} a3 {[%emt 0:01:48]} 29. Ba1 {[%emt 0:01:07]} Ra4 {[%emt 0:00:49]} 30. Rfc1 {[%emt 0:00:50]} h5 {[%emt 0:03:32]} 31. Rb6 {[%emt 0:31:51]} Rd8 {[%emt 0:32:59]} 32. Rb8 {[%emt 0:04:03]} Rf8 {[%emt 0:00:04]} 33. Rb6 {[%emt 0:01:59]} Rd8 {[%emt 0:00:30]} 34. Kh2 {[%emt 0:00:10]} Qxf6 {[%emt 0:01:38]} 35. Bxf6 {[%emt 0:00:04]} Re8 {[%emt 0:00:04]} 36. Bf1 {[%emt 0:01:48]} Kh7 {[%emt 0:00:19]} 37. Be2 {[%emt 0:01:51]} Kg6 {[%emt 0:00:05]} 38. Ba1 {[%emt 0:00:03]} Rd8 {[%emt 0:01:59]} 39. Kg2 {[%emt 0:00:15]} Nh6 {[%emt 0:00:19]} 40. Be5 {[%emt 0:00:00]} Nf7 {[%emt 0:00:00]} 41. Bf4 {[%emt 0:00:00]} Ba6 {[%emt 0:00:00]} 42. Rh1 {[%emt 0:00:00]} Bxc4 {[%emt 0:00:00]} 43. Bxh5+ {[%emt 0:00:00]} Kg7 {[%emt 0:00:00]} 44. Bxf7 {[%emt 0:00:00]} Kxf7 {[%emt 0:00:00]} 45. Rb7+ {[%emt 0:00:00]} Kg8 {[%emt 0:00:00]} 46. Rhh7 {[%emt 0:00:00]} 1-0

[Event "DMP Ekstraliga 2020"]
[Site "Krakow"]
[Date "2020.03.27"]
[Round "2.23"]
[White "Sliwerski, Radoslaw"]
[Black "Mikrut, Dariusz"]
[Result "0-1"]
[ECO "E62"]
[WhiteElo "2042"]
[BlackElo "2390"]
[Annotator "ChessBase"]
[PlyCount "66"]
[EventDate "2020.08.26"]
[EventType "team-tourn"]
[EventCountry "POL"]
[SourceTitle "playchess.com"]
[Source "ChessBase"]
[SourceQuality "1"]
[TimeControl "30/5400+30:1800+30"]

1. d4 {[%emt 0:00:00]} Nf6 {[%emt 0:00:00]} 2. c4 {[%emt 0:00:00]} g6 {[%emt 0:00:09]} 3. g3 {[%emt 0:00:00]} Bg7 {[%emt 0:00:07]} 4. Bg2 {[%emt 0:00:00]} O-O {[%emt 0:00:12]} 5. Nf3 {[%emt 0:00:00]} d6 {[%emt 0:00:10]} 6. O-O {[%emt 0:00:00]} c6 {[%emt 0:00:05]} 7. Nc3 {[%emt 0:00:06]} Bf5 {[%emt 0:00:07]} 8. Re1 {[%emt 0:06:51]} Ne4 {[%emt 0:01:11]} 9. Nh4 {[%emt 0:00:52]} Nxc3 {[%emt 0:00:06]} 10. bxc3 {[%emt 0:00:03]} Be6 {[%emt 0:00:47]} 11. Rb1 {[%emt 0:00:51]} Qc8 {[%emt 0:03:52]} 12. Qa4 {[%emt 0:07:41]} Nd7 {[%emt 0:06:47]} 13. d5 {[%emt 0:08:25]} Nc5 {[%emt 0:11:19]} 14. Qc2 {[%emt 0:16:31]} cxd5 {[%emt 0:00:23]} 15. cxd5 {[%emt 0:00:16]} Bd7 {[%emt 0:00:07]} 16. Be3 {[%emt 0:01:34]} b6 {[%emt 0:00:39]} 17. Rbc1 {[%emt 0:10:33]} Na4 {[%emt 0:03:51]} 18. c4 {[%emt 0:08:49]} Qa6 {[%emt 0:02:50]} 19. Qe4 {[%emt 0:03:40]} Rfe8 {[%emt 0:01:17]} 20. Nf3 {[%emt 0:15:19]} Rac8 {[%emt 0:06:09]} 21. Qh4 {[%emt 0:08:12]} Nc3 {[%emt 0:11:08]} 22. Bd4 {[%emt 0:07:50]} Bxd4 {[%emt 0:02:59]} 23. Ng5 {[%emt 0:02:45]} h5 {[%emt 0:01:14]} 24. Qxd4 {[%emt 0:00:42]} Qxc4 {[%emt 0:00:29]} 25. Qxc4 {[%emt 0:00:20]} Rxc4 {[%emt 0:00:08]} 26. Bf1 {[%emt 0:00:21]} Rec8 {[%emt 0:00:18]} 27. Kg2 {[%emt 0:01:03]} f6 {[%emt 0:03:57]} 28. e4 {[%emt 0:00:28]} R4c7 {[%emt 0:03:00]} 29. Ba6 {[%emt 0:00:06]} Rb8 {[%emt 0:18:40]} 30. Ne6 {[%emt 0:00:04]} Bxe6 {[%emt 0:00:07]} 31. dxe6 {[%emt 0:30:08]} Rc5 {[%emt 0:30:47]} 32. Rc2 {[%emt 0:01:57]} b5 {[%emt 0:01:19]} 33. Rec1 {[%emt 0:00:27]} Na4 {[%emt 0:03:42]} 0-1

[Event "DMP Ekstraliga 2020"]
[Site "Krakow"]
[Date "2020.03.27"]
[Round "2.24"]
[White "Leks, Maria"]
[Black "Kulon, Klaudia"]
[Result "0-1"]
[ECO "C55"]
[WhiteElo "2080"]
[BlackElo "2336"]
[Annotator "ChessBase"]
[PlyCount "116"]
[EventDate "2020.08.26"]
[EventType "team-tourn"]
[EventCountry "POL"]
[SourceTitle "playchess.com"]
[Source "ChessBase"]
[SourceQuality "1"]
[TimeControl "30/5400+30:1800+30"]

1. e4 {[%emt 0:00:00]} e5 {[%emt 0:00:00]} 2. Nf3 {[%emt 0:00:00]} Nc6 {[%emt 0:00:00]} 3. Bc4 {[%emt 0:00:00]} Nf6 {[%emt 0:00:00]} 4. d3 {[%emt 0:00:00]} h6 {[%emt 0:00:14]} 5. c3 {[%emt 0:00:15]} d6 {[%emt 0:00:05]} 6. O-O {[%emt 0:00:10]} g6 {[%emt 0:00:08]} 7. d4 {[%emt 0:01:16]} Qe7 {[%emt 0:00:07]} 8. Re1 {[%emt 0:00:06]} Bg7 {[%emt 0:00:17]} 9. h3 {[%emt 0:00:08]} O-O {[%emt 0:00:25]} 10. Nbd2 {[%emt 0:00:10]} Bd7 {[%emt 0:02:47]} 11. Nf1 {[%emt 0:01:12]} Rae8 {[%emt 0:01:54]} 12. Ng3 {[%emt 0:01:07]} Na5 {[%emt 0:05:18]} 13. Bd3 {[%emt 0:01:12]} c5 {[%emt 0:00:53]} 14. d5 {[%emt 0:03:13]} b5 {[%emt 0:02:24]} 15. b4 {[%emt 0:03:22]} Nb7 {[%emt 0:06:40]} 16. a4 {[%emt 0:08:29]} c4 {[%emt 0:01:25]} 17. Bc2 {[%emt 0:02:44]} Ra8 {[%emt 0:00:20]} 18. axb5 {[%emt 0:01:47]} Bxb5 {[%emt 0:00:25]} 19. Ba4 {[%emt 0:00:10]} a6 {[%emt 0:07:56]} 20. Qc2 {[%emt 0:03:47]} Qd7 {[%emt 0:06:23]} 21. Be3 {[%emt 0:01:23]} Nh7 {[%emt 0:06:28]} 22. Ra2 {[%emt 0:04:42]} Bxa4 {[%emt 0:05:25]} 23. Qxa4 {[%emt 0:03:21]} Qxa4 {[%emt 0:00:04]} 24. Rxa4 {[%emt 0:00:04]} f5 {[%emt 0:00:10]} 25. exf5 {[%emt 0:11:15]} gxf5 {[%emt 0:00:31]} 26. Nh5 {[%emt 0:00:11]} f4 {[%emt 0:02:28]} 27. Bb6 {[%emt 0:06:57]} Rf5 {[%emt 0:19:08]} 28. Nxg7 {[%emt 0:00:26]} Kxg7 {[%emt 0:00:04]} 29. b5 {[%emt 0:01:30]} a5 {[%emt 0:00:04]} 30. Rxc4 {[%emt 0:07:07]} Rf7 {[%emt 0:00:04]} 31. Rc6 {[%emt 0:41:51]} Nf6 {[%emt 0:30:39]} 32. c4 {[%emt 0:00:03]} a4 {[%emt 0:00:53]} 33. Nd2 {[%emt 0:01:40]} a3 {[%emt 0:02:39]} 34. Ra1 {[%emt 0:04:36]} a2 {[%emt 0:00:50]} 35. f3 {[%emt 0:00:12]} Kg6 {[%emt 0:05:15]} 36. Bf2 {[%emt 0:01:25]} Kf5 {[%emt 0:00:46]} 37. Ra6 {[%emt 0:00:26]} Rg8 {[%emt 0:00:24]} 38. R1xa2 {[%emt 0:04:29]} Rfg7 {[%emt 0:01:06]} 39. g4+ {[%emt 0:00:06]} fxg3 {[%emt 0:00:05]} 40. Be3 {[%emt 0:00:00]} g2 {[%emt 0:00:00]} 41. Ra8 {[%emt 0:00:00]} Nd8 {[%emt 0:00:00]} 42. Bb6 {[%emt 0:00:00]} Nh5 {[%emt 0:00:00]} 43. Ne4 {[%emt 0:00:00]} Nf4 {[%emt 0:00:00]} 44. Nf2 {[%emt 0:00:00]} Nf7 {[%emt 0:00:00]} 45. Rxg8 {[%emt 0:00:00]} Rxg8 {[%emt 0:00:00]} 46. Ng4 {[%emt 0:04:58]} Ng5 {[%emt 0:00:00]} 47. Ne3+ {[%emt 0:00:18]} Kf6 {[%emt 0:00:08]} 48. Nxg2 {[%emt 0:00:12]} Nxf3+ {[%emt 0:00:13]} 49. Kh1 {[%emt 0:03:14]} Nh5 {[%emt 0:00:31]} 50. Ne1 {[%emt 0:12:35]} Ng3+ {[%emt 0:01:06]} 51. Kg2 {[%emt 0:00:05]} Nxe1+ {[%emt 0:00:05]} 52. Kf2 {[%emt 0:00:10]} Nd3+ {[%emt 0:00:07]} 53. Ke3 {[%emt 0:00:22]} Nf4 {[%emt 0:00:11]} 54. Bc7 {[%emt 0:00:37]} Nf5+ {[%emt 0:00:36]} 55. Ke4 {[%emt 0:00:41]} Rg3 {[%emt 0:00:21]} 56. Bd8+ {[%emt 0:00:27]} Kg6 {[%emt 0:00:04]} 57. Bb6 {[%emt 0:00:17]} Nxh3 {[%emt 0:00:09]} 58. Ra8 {[%emt 0:00:30]} Ng5# {[%emt 0:00:05]} 0-1

[Event "DMP Ekstraliga 2020"]
[Site "Krakow"]
[Date "2020.03.27"]
[Round "2.25"]
[White "Harikrishna, Pentala"]
[Black "Huschenbeth, Niclas"]
[Result "1-0"]
[ECO "D37"]
[WhiteElo "2732"]
[BlackElo "2605"]
[Annotator "ChessBase"]
[PlyCount "125"]
[EventDate "2020.08.26"]
[EventType "team-tourn"]
[EventCountry "POL"]
[SourceTitle "playchess.com"]
[Source "ChessBase"]
[SourceQuality "1"]
[TimeControl "30/5400+30:1800+30"]

1. d4 {[%emt 0:00:00]} Nf6 {[%emt 0:00:00]} 2. c4 {[%emt 0:00:00]} e6 {[%emt 0:00:00]} 3. Nf3 {[%emt 0:00:00]} d5 {[%emt 0:00:00]} 4. Nc3 {[%emt 0:00:00]} dxc4 {[%emt 0:00:00]} 5. e3 {[%emt 0:00:10]} a6 {[%emt 0:00:20]} 6. Bxc4 {[%emt 0:00:08]} b5 {[%emt 0:00:49]} 7. Bd3 {[%emt 0:03:53]} Bb7 {[%emt 0:04:59]} 8. Qe2 {[%emt 0:06:07]} c5 {[%emt 0:10:24]} 9. dxc5 {[%emt 0:00:55]} b4 {[%emt 0:08:51]} 10. Na4 {[%emt 0:04:00]} Nbd7 {[%emt 0:00:11]} 11. O-O {[%emt 0:04:04]} Nxc5 {[%emt 0:08:54]} 12. Nxc5 {[%emt 0:03:37]} Bxc5 {[%emt 0:00:04]} 13. e4 {[%emt 0:01:07]} Qb6 {[%emt 0:12:14]} 14. Ne5 {[%emt 0:03:26]} O-O {[%emt 0:08:29]} 15. Bf4 {[%emt 0:05:39]} a5 {[%emt 0:10:45]} 16. Rac1 {[%emt 0:05:33]} Rfd8 {[%emt 0:02:20]} 17. Rc2 {[%emt 0:08:54]} Qa7 {[%emt 0:07:03]} 18. Bg5 {[%emt 0:04:19]} Bd6 {[%emt 0:13:51]} 19. Nc4 {[%emt 0:10:49]} Be7 {[%emt 0:02:39]} 20. e5 {[%emt 0:02:30]} Nd5 {[%emt 0:00:03]} 21. Bxe7 {[%emt 0:00:25]} Nxe7 {[%emt 0:00:01]} 22. Nd6 {[%emt 0:00:26]} Ba6 {[%emt 0:00:20]} 23. Bxa6 {[%emt 0:14:37]} Qxa6 {[%emt 0:00:03]} 24. Qe4 {[%emt 0:00:28]} Rd7 {[%emt 0:02:07]} 25. h4 {[%emt 0:01:18]} Rad8 {[%emt 0:00:43]} 26. h5 {[%emt 0:01:29]} Nc8 {[%emt 0:02:24]} 27. Rc6 {[%emt 0:03:59]} Nxd6 {[%emt 0:00:06]} 28. exd6 {[%emt 0:00:05]} Qb5 {[%emt 0:00:42]} 29. Qf3 {[%emt 0:03:03]} Qd5 {[%emt 0:02:28]} 30. Qxd5 {[%emt 0:05:33]} exd5 {[%emt 0:00:03]} 31. Rfc1 {[%emt 0:33:46]} Kf8 {[%emt 0:30:05]} 32. R1c5 {[%emt 0:00:21]} Rxd6 {[%emt 0:00:06]} 33. Rxd6 {[%emt 0:00:08]} Rxd6 {[%emt 0:00:04]} 34. Kf1 {[%emt 0:00:14]} Ke7 {[%emt 0:03:38]} 35. Rxa5 {[%emt 0:01:22]} Ke6 {[%emt 0:00:23]} 36. Ke2 {[%emt 0:01:40]} Rc6 {[%emt 0:00:25]} 37. Kd2 {[%emt 0:00:16]} Ke5 {[%emt 0:02:16]} 38. Ra7 {[%emt 0:01:15]} Rf6 {[%emt 0:00:34]} 39. f3 {[%emt 0:02:05]} Kd4 {[%emt 0:00:26]} 40. Ra4 {[%emt 0:00:00]} Kc5 {[%emt 0:00:00]} 41. Ke3 {[%emt 0:00:00]} Re6+ {[%emt 0:00:00]} 42. Kd3 {[%emt 0:00:00]} Re7 {[%emt 0:00:00]} 43. Ra5+ {[%emt 0:00:00]} Kc6 {[%emt 0:00:00]} 44. g4 {[%emt 0:00:00]} f5 {[%emt 0:00:00]} 45. g5 {[%emt 0:00:00]} f4 {[%emt 0:00:00]} 46. Kd4 {[%emt 0:00:00]} Re2 {[%emt 0:00:00]} 47. b3 {[%emt 0:00:00]} Rh2 {[%emt 0:00:00]} 48. Rc5+ {[%emt 0:00:00]} Kb6 {[%emt 0:00:00]} 49. Rxd5 {[%emt 0:00:00]} Rxa2 {[%emt 0:01:25]} 50. g6 {[%emt 0:01:25]} hxg6 {[%emt 0:01:28]} 51. Rd6+ {[%emt 0:00:25]} Kb5 {[%emt 0:00:07]} 52. Rxg6 {[%emt 0:00:12]} Rh2 {[%emt 0:02:22]} 53. Rg5+ {[%emt 0:01:08]} Kc6 {[%emt 0:00:01]} 54. Ke4 {[%emt 0:01:04]} Kd6 {[%emt 0:01:48]} 55. Kxf4 {[%emt 0:03:16]} Ke6 {[%emt 0:00:34]} 56. Rxg7 {[%emt 0:01:22]} Rxh5 {[%emt 0:00:03]} 57. Rb7 {[%emt 0:00:45]} Rh4+ {[%emt 0:01:14]} 58. Kg5 {[%emt 0:00:06]} Rd4 {[%emt 0:00:26]} 59. f4 {[%emt 0:00:05]} Kd6 {[%emt 0:00:38]} 60. f5 {[%emt 0:00:13]} Kc5 {[%emt 0:00:31]} 61. f6 {[%emt 0:00:33]} Rd3 {[%emt 0:00:26]} 62. f7 {[%emt 0:00:40]} Rf3 {[%emt 0:00:23]} 63. Kg6 {[%emt 0:00:17]} 1-0